{"text_format":"3","workbook":"xlsx","n_sheets":6,"sheets":["清单编制说明","清单","专业分包招标预算价清单 ","甲供材料一览表","定额计价程序表 ","安全文明施工措施工作清单"],"not_rendered":{"external_links":242,"defined_names":13606},"read":"whole","date_system":"1900"}

{"sheet":"清单编制说明","index":0,"n_rows":35,"n_cols":2,"rows_kept":35,"merged":[[0,0,0,1]]}
["洪湾旧村更新项目周边环山路等市政道路工程-箱变工程\n专业分包招标预算价清单"]
["序号","清单编制说明"]
["一","清单编制范围及依据"]
[1.1,"工程概况：洪湾旧村更新项目周边环山路等市政道路工程，道路长约2187m，呈南北走向；横一路工程工程道路红线宽18.0米，道路长约217米；横二路工程道路红线宽15.0米，道路长约110米；横三路工程，道路红线宽15.0米，道路长约107米；横四路工程，道路红线宽15.0米，道路长约159米；横一路至横四路工程起点在建洪湾西市政道路，终点拟建环山路，呈东西走向。五条市政道路等级均为城市支路，建设内容包括道路工程、给排水工程、照明工程、绿化工程、安监工程和交通工程等"]
[1.2,"项目承包方式：劳务分包□；专业分包R；其他□。"]
[1.3,"项目承揽范围：箱变工程：看门狗（含基础、接地）、高压进线电缆、箱变（含基础）的材料采购、安装、调试及验收等相关工作内容；包括但不限于以下几点：\n（1）箱变施工需组织照明、安监、交通等公共用电负荷深化设计箱式变电站系统图，并向市有关部门申报，批准后实施；\n（2）箱变施工需统筹照明、安监、交通等需接入照明箱变的专业队伍在施工开始至质保期结束，期间的深化设计施工安装、调试、检测、试运行、维修、验收与移交等工作；\n（3）各专业分包需从施工开始至质保期结束对各自施工的电路设备负责，深化设计（向主管部门报批）安装、调试、检测、试运行、维修、验收与移交等工作。"]
[1.4,"清单编制依据：                                                                                                                                                                                                                     （1）《建设工程工程量清单计价规范》GB50500-2013及附录；                                                                                                                                                                                                  \n（2）国家或省级、行业建设主管部门颁发的计价依据和办法；                                                                                                                    \n（3）建设工程设计文件；\n（4）与建设工程项目有关的标准、规范、技术资料；\n（5）招标文件及其补充通知、答疑纪要；\n（6）施工现场情况、工程特点及常规施工方案；                                                                                                                                                                                                                                                   \n（7）其他相关资料。"]
[1.5,"本工程量清单包括清单编制说明、工程量清单、甲供材料一览表、甲定品牌一览表、零星工程单价清单、定额计价程序表、安全文明施工措施费工作清单等，上述内容均构成合同不可分割的一部分。"]
[1.6,"清单未提及的工作内容应包含但不限于：相关规范、质量通病、招标文件、施工合同、图纸要求、现场施工条件、施工方式、配合及响应政府号召的相关工作。"]
["二","清单综合单价构成及说明"]
["2.1","清单综合单价包括完成一个约定计量单位的清单项目所需的人工费、材料费（甲供材料以外的所有材料费用）、施工机具使用费、保险费（施工人员团体意外伤害保险）、管理费、利润、措施费用（详见措施费用明细）、其他费用（详见其他费用明细）、税金（按合同清单约定税率）、作为一个有经验的承包商对项目充分了解及对风险充分估计后所需承担的风险费用。"]
["2.2","清单综合单价包含措施费用明细：安全文明施工费（其中安全措施费用不低于含税造价的1.5%）；夜间施工增加费；非夜间施工照明费；二次搬运；冬雨季施工增加费；地上、地下设施、建筑物的临时保护设施费；已完工程及设备保护费、超高施工增加费、特殊工种培训费等。"]
["2.3","清单综合单价包含其他费用明细：预算包干费、材料试验检验费（甲供材料以外的所有材料的试验检验费用）、配合费（包括甲乙双方配合及与甲方其他分包之间的配合费用）、材料保管费（包括移交给乙方施工的甲供材料）、合同约定工期内合理的赶工费用。"]
["2.4","施工作业中至移交前若发生相关水电费，结算时扣除方式：①安装水电表的，按照水电表据实扣除；②没安装水电表的，工程按合同暂定总价的0.5%先行计算扣除、工程按结算总价的0.5%予以调整，不足100元按照扣除100元计算。"]
["三","清单计价计量规则"]
[3.1,"本合同的工程量计算规则以本合同《工程量清单》中的工程量计量规则为准，未描述内容则参照《建设工程工程量清单计价规范》GB50500-2013及附录执行，如与本合同《工程量清单》中的工程量计量规则矛盾，则以本合同《工程量清单》中的工程量计量规则为准。"]
[3.2,"涉及到房屋建筑与装饰装修等工程的项目，按国家标准《房屋建筑与装饰工程计量规范》的相应项目执行；涉及到电气、给排水、消防等安装工程的项目，按照国家标准《通用安装工程计量规范》的相应项目执行；涉及到道路、室外给排水等工程的项目，按国家标准《市政工程计量规范》的相应项目执行。"]
[3.3,"本合同中以建筑面积为工程量计价的项目，为减少争议，均以项目规划许可证上载明的建筑面积为准，如需分割计算，则以《建筑工程建筑面积计算规范》GB/T 50353-2013计算规则为准。"]
[3.4,"招标范围外的定价原则：\n（1）专业分包：本工程量清单中有相似清单项，按相似清单项换算后的确定价格；若本工程量清单中无相似的清单项，则套定额确定价格，具体原则如下：消耗量按《广东省房屋建筑与装饰工程综合定额（2018）》、《广东省市政工程综合定额（2018）》、《广东省通用安装工程综合定额（2018）》、《广东省园林绿化工程综合定额（2018）》；人工、材料、机械台班价格按施工当月项目所在地信息价执行（如项目所在地当月信息价缺失，可通过协商定价的方式确定人工、材料、机械台班价格），按《工程定额计价办法》取费后房屋建筑与装饰工程、市政工程、通用安装工程下浮\\%，园林绿化工程下浮\\%。计价程序表详本清单所附《定额计价程序表》。                                                                                                                                         （2）劳务分包：按市场劳务价格执行或者双方谈判确定。"]
[3.5,"由于施工错误、质量问题等引起的返工等事项，工作量不予计量。"]
["3.6","同样工作内容的清单，清单综合单价有高低时，按照综合单价低的原则结算。"]
[3.7,"结算按实际发生的有效工程量计算，工程量必须由甲方签字确认"]
["四","清单材料管理"]
[4.1,"除甲方提供的材料设备外，一切与乙方承包范围相关的材料均由乙方负责采购或租赁，其有关费用已包括在清单综合单价内。甲方提供的材料详见《甲供材料一览表》。"]
["4.2","乙方使用甲方提供的材料，须严格控制材料损耗，甲供材料损耗率按《甲供材料一览表》中约定的损耗率控制，超出材料约定损耗所浪费的材料费用由乙方按甲方含税购买价格进行赔偿。"]
["4.3","甲方提供的钢筋施工后产生的废料，由乙方负责收集整理至甲方指定地点，由甲方负责回收,且废料不充减钢筋总供应量。"]
["4.4","由乙方负责采购或租赁的材料设备由乙方按要求负责送检，相应检验费用已包含在清单综合单价中。由乙方负责采购或租赁的材料设备须符合甲方的品牌、品质要求，进场使用前须按甲方要求，接收检查，并提供材料设备相应的合格证明材料。"]
["五","增值税说明"]
["5.1","本工程需开具增值税专用发票，税率9 %，城建税、教育附加税等其他税费均已在价税分离中不含税部分综合考虑。若后期国家或地区增值税税率发生调整，则保持不含税综合单价不变，税金按政策进行相应调整（无论调增还是调减）。"]
["六","其他说明"]
[6.1,"报价前或签订本合同前，承包人已详细阅读并了解本说明、勘探报告、地下管线、施工用电、临时设施、现场情况等资料及项目所在地的政策环境和市场环境，并自行至工地现场踏勘，承包人因不了解上述资料或现场而提出的索赔将不予受理。"]
["6.2","本清单项目名称对工作内容的描述是简单性和概括性的，并非完整无缺，其它未提及的必需工序、辅助工作等均已综合考虑在本项目各综合单价中。清单中未开列或未有说明的费用，但合同约定为本工程工作内容及工程范围的，由投标单位综合考虑在已列出的清单项目中，结算时不予计算。"]
["6.3","投标人投标时除提供投标报价单外，还须提供报价组成文件作为标书的一部分，一般情况下需提供易达计价文件，如无法使用易达软件计价的情况，按《分包报价综合单价分析表》样表提供组价文件。"]
["6.4","清单综合单价包含的安全文明施工费，需施作内容详见《安全文明施工措施费工作清单》，可根据分包承包范围及内容适当调整选择。"]
[6.5,"本项目不接受不平衡报价。"]

{"sheet":"清单","index":1,"n_rows":5,"n_cols":8,"rows_kept":5,"merged":[[0,0,0,7],[1,0,1,4],[1,5,1,7],[2,0,2,3],[2,4,2,7],[4,0,5,0],[4,1,5,1],[4,2,5,2],[4,3,5,3],[4,4,5,4],[4,5,5,5],[4,6,5,6],[4,7,5,7]]}
["洪湾旧村更新项目周边环山路等市政道路工程-箱变工程专业分包招标预算价清单"]
["工程名称：洪湾旧村更新项目周边环山路等市政道路工程-箱变工程"]
["暂定合同价=1,651,572.72×（1-投标人报价下浮率）"]
["序号","项目名称","项目特征描述","计量\n单位","数量","投标上限","投标下浮率","备注"]
[1,"洪湾旧村更新项目周边环山路等市政道路工程-箱变工程","1、工程内容：箱变工程、户外开关箱（含基础）、看门狗（含基础、接地）、高压进线电缆、箱变（含基础）的材料采购、安装、调试及验收）等包含本合同段施工图深化设计、专项方案编制、包含设备完成安装后同周边环境的恢复等，现场施工所有措施费、对外协调配合证件办理及本项目涉及公路部门工作的前期交涉与施工等工作，含材料转运、安全文明施工、工程现场施工所有技术方案措施、二次深化设计，移交等，具体以招标文件、设计图纸及甲方要求为准；\n2、计价清单与定额及争议解决办法：\n（1）采用清单计价，执行国家《建设工程工程量清单计价规范》（GB50500-2013），\n（2）《广东省房屋建筑与装饰工程综合定额（2018）》、《广东省市政工程综合定额（2018）》、《广东省通用安装工程综合定额（2018）》、《广东省绿化工程综合定额（2018）》、《广东省建设工程施工机具台班费用编制规则（2018）》，\n（3）争议解决办法以造价站或政府相关部门答疑文件为准；                             \n3、人工费：如果施工期间人工费有调整，人工价发生变化且符合省级或行业建设主管部门发布的人工费调整规定，合同当事人应按省级或行业建设主管部门或其授权的工程造价管理机构发布的人工费等文件调整合同价格；              \n4、造价调整条件、范围及调整方式按总包单位对建设单位招标文件及合同执行；\n5、取费标准：\n（1）管理费按二类地区计取，\n（2）绿色施工安全防护措施费（按系数计取的包括包括绿色施工、临时设施、安全施工和用工实名管理）：按广东省计价办法执行，以分部分项的人工费+机具费为计算基数,建筑工程为19%,安装工程为35.77%,市政道路管网工程为16.5%,市政桥涵隧道工程为 14.5%,园林绿化工程为10%，\n（3）预算包干费以分部分项人工费+机具费为计算基数,建筑工程为7%,安装工程为10%,市政工程为6%,园林绿化工程为6%，\n（4）利润以分部分项人工费+机具费为计算基数,建筑工程为20%,安装工程为20%,市政工程为15%,园林绿化工程为18%；\n（5）增值税税率：9%；如有新政策则按新政策调整；\n（6）不取费项目：工程排污费、防洪工程维护费及危险作业意外伤害保险费；\n6、审核软件：Excel表格（算量）、易达（计价）；                                           \n7、付款方式：预算审核政府相关部门未审批前，计价方式按第“2~5”点执行，政府相关部门审批后按实调整支付清单；\n8、因箱变工程需进行二次深化，可能存在重新计价，最终结算价（含9%增值税专用发票）=财审审定结算价×(1-投标价下浮费率)；如因甲方施工要求造成发生的签证无法向政府相关部门报批，产生的无效成本由甲方支付，计价按第“2~5”点原则执行计算单价×(1-投标价下浮费率)；\n","项",{"v":1,"d":"1.00"},"下浮 2 %","下浮    %"]

{"sheet":"专业分包招标预算价清单 ","index":2,"n_rows":27,"n_cols":16,"rows_kept":27,"merged":[[0,0,0,10],[1,0,2,0],[1,1,2,1],[1,2,2,2],[1,3,2,3],[1,4,2,4],[1,5,2,5],[1,6,1,8],[1,9,2,9],[1,10,2,10],[21,1,21,2]]}
["洪湾旧村更新项目周边环山路等市政道路工程-箱变工程专业分包招标预算清单"]
["序号","项目名称","项目特征描述","计量规则","单位","暂定\n工程量","综合单价",null,null,"合价","备注"]
[{"$nulls":6},"不含税      综合单价","增值\n税率","含税         综合单价"]
["一","分部分项费用"]
[null,"外电接入","",null,"",""]
[1,"成套箱变 160kVA","1、名称：成套箱式变压器\n2、型号：欧式\n3、容量：160kV.A\n4、电压：10/0.4kV\n5、组合形式：带高压开关柜和低压配电柜,控制柜AC详见设计图纸\n6、基础形式、材质、规格：垫层普通预拌混凝土 C25 100厚，现浇基础普通预拌混凝土 C25 尺寸3000*2000*1500mm，配筋Ф25以内，防雷接地 镀锌角钢∠50*50*3 L=2500、镀锌圆钢 DN16，具体尺寸根据设备选型确定","按设计图示数量计算","台",{"v":2,"d":"2.00"},{"v":202623.8,"d":"202,623.80"},{"v":0.09,"d":"9.00%"},{"$f":"ROUND(G6*(1+H6),2)","v":{"v":220859.94,"d":"220,859.94"}},{"$f":"ROUND(F6*I6,2)","v":{"v":441719.88,"d":"441,719.88"}},null,null,{"$f":"J6/2+J9","v":1011011.94},null,190061.1244,198571.324]
[null,"10Kv五间隔自动化户外开关箱","1、名称：户外开关箱\n2、型号：1进5出\n3、额定电压：12kV\n4、额定电流：630A\n5、含基础","按设计图示数量计算","台",{"v":1,"d":"1.00"},{"v":211464.84,"d":"211,464.84"},{"v":0.09,"d":"9.00%"},{"$f":"ROUND(G7*(1+H7),2)","v":{"v":230496.68,"d":"230,496.68"}},{"$f":"ROUND(F7*I7,2)","v":{"v":230496.68,"d":"230,496.68"}},null,null,{"$f":"M6/J22","v":0.612151028990113},null,198354.01992,207235.5432]
[2,"10kV分界断路器","1、10KV分界断路器\n2、基础形式、材质、规格：垫层普通预拌混凝土 C25 100厚，现浇基础普通预拌混凝土 C25 尺寸1500*800*1000mm，配筋Ф25以内\n3、其他要求：详见设计施工图及规范要求","按设计图示数量计算","台",{"v":2,"d":"2.00"},{"v":23968.07,"d":"23,968.07"},{"$f":"$H$6","v":{"v":0.09,"d":"9.00%"}},{"$f":"ROUND(G8*(1+H8),2)","v":{"v":26125.2,"d":"26,125.20"}},{"$f":"ROUND(F8*I8,2)","v":{"v":52250.4,"d":"52,250.40"}},{"$nulls":4},22482.04966,23488.7086]
[3,"高压电力电缆","1、型号规格：YJV22-10-3*95mm2\n2、敷设方式、部位：室外敷设\n3、电压等级：10kV","按设计图示数量计算","m",{"v":2400,"d":"2,400.00"},302.05,{"$f":"$H$6","v":{"v":0.09,"d":"9.00%"}},329.23,{"v":790152,"d":"790,152.00"},{"$nulls":4},283.3229,296.009]
[4,"冷缩式高压电力电缆终端头","1、类型：冷缩式高压电力电缆终端头\n2、型号规格：3*95mm2\n3、安装部位：户外\n4、电压等级：10kV","按设计图示数量计算","个",{"v":4,"d":"4.00"},801.56,{"v":0.09,"d":"9.00%"},{"v":873.7,"d":"873.70"},{"v":3494.8,"d":"3,494.80"},{"$nulls":4},751.86328,785.5288]
[5,"冷缩式高压电力电缆中间头","1、类型：冷缩式高压电力电缆中间头\n2、型号规格：3*95mm2\n3、安装部位：户外\n4、电压等级：10kV","按设计图示数量计算","个",{"v":2,"d":"2.00"},{"v":1304.07,"d":"1,304.07"},{"v":0.09,"d":"9.00%"},{"v":1421.44,"d":"1,421.44"},{"v":2842.88,"d":"2,842.88"},{"$nulls":4},1223.21766,1277.9886]
[6,"箱变南网6S标准标示牌","1、类型：箱变南网6S标准标示牌","按设计图示数量计算","项",{"v":2,"d":"2.00"},{"v":1500,"d":"1,500.00"},{"v":0.09,"d":"9.00%"},{"v":1635,"d":"1,635.00"},{"v":3270,"d":"3,270.00"},{"$nulls":4},1407,1470]
[7,"铺砂、盖保护板(砖)","1、类型：盖保护板(砖)","按设计图示数量计算","m",{"v":2400,"d":"2,400.00"},14.14,{"v":0.09,"d":"9.00%"},15.41,{"v":36984,"d":"36,984.00"},{"$nulls":4},13.26332,13.8572]
[8,"组合型成套箱式变电站系统调试","1、类型：组合型成套箱式变电站系统调试 10kV以下单台变压器容量(kV·A以下) 315","按设计图示数量计算","系统",{"v":1,"d":"1.00"},{"v":4519.24,"d":"4,519.24"},{"v":0.09,"d":"9.00%"},{"v":4925.97,"d":"4,925.97"},{"v":4925.97,"d":"4,925.97"},{"$nulls":4},4239.04712,4428.8552]
[9,"送配电装置系统调试 (综合) 10kV以下交流供电","1、类型：送配电装置系统调试 (综合) 10kV以下交流供电","按设计图示数量计算","系统",{"v":2,"d":"2.00"},{"v":3003.11,"d":"3,003.11"},{"v":0.09,"d":"9.00%"},{"v":3273.39,"d":"3,273.39"},{"v":6546.78,"d":"6,546.78"},{"$nulls":4},2816.91718,2943.0478]
[10,"电缆试验 10KV电缆交流耐压试验","1、类型：电缆试验 10KV电缆交流耐压试验","按设计图示数量计算","根",{"v":2,"d":"2.00"},{"v":6050.82,"d":"6,050.82"},{"v":0.09,"d":"9.00%"},{"v":6595.39,"d":"6,595.39"},{"v":13190.78,"d":"13,190.78"},{"$nulls":4},5675.66916,5929.8036]
[11,"接地装置调试","1、类型：接地装置调试 接地网","按设计图示数量计算","系统",{"v":2,"d":"2.00"},{"v":1743.39,"d":"1,743.39"},{"$f":"$H$6","v":{"v":0.09,"d":"9.00%"}},{"v":1900.3,"d":"1,900.30"},{"v":3800.6,"d":"3,800.60"},{"$nulls":4},1635.29982,1708.5222]
[12,"挖沟槽土方","1、土壤类别：综合考虑\n2、挖土深度：深2m以内\n3、挖土方式：人工配合机械挖沟槽土方","按设计图示数量计算","m3",{"v":576,"d":"576.00"},8.62,{"$f":"$H$6","v":{"v":0.09,"d":"9.00%"}},{"v":9.4,"d":"9.40"},{"v":5414.4,"d":"5,414.40"},{"$nulls":4},8.08556,8.4476]
[13,"回填方","1、填方材料品种：综合考虑\n2、密实度要求：按工程规范要求","按设计图示数量计算","m3",{"v":576,"d":"576.00"},19.47,{"$f":"$H$6","v":{"v":0.09,"d":"9.00%"}},21.22,{"v":12222.72,"d":"12,222.72"},{"$nulls":4},18.26286,19.0806]
["二","绿色施工安全防护措施费","1.具体内容包括但不限于：劳务单位项目办公场所、劳务单位项目工人生活场所、安全措施（铁马、水马、安全护栏等） 、文明施工（标识标语）、所负责施工范围内的环境保护（清洁卫生、垃圾清理等）、负责所施工范围内的临水临电、防尘降噪、道路清扫等。\n2.不含总包办公场所集装箱及临设。","以分部分项工程的人工费与施工机具费之和的35.77%计算；","项",{"v":1,"d":"1.00"},{"v":31734.46,"d":"31,734.46"},{"v":0.09,"d":"9.00%"},{"v":34590.56,"d":"34,590.56"},{"v":34590.56,"d":"34,590.56"},{"$nulls":4},29766.92348,31099.7708]
["三","预算包干费",null,"按分部分项的人工费与施工机具费之和的10.00%计算","项",{"v":1,"d":"1.00"},{"v":8871.81,"d":"8,871.81"},{"v":0.09,"d":"9.00%"},{"v":9670.27,"d":"9,670.27"},{"v":9670.27,"d":"9,670.27"},{"$nulls":4},8321.75778,8694.3738]
[null,"含税总价（含9%增值税专用发票）",{"$nulls":3},"元",{"$nulls":3},{"$f":"SUM(J6:J21)","v":{"v":1651572.72,"d":"1,651,572.72"}}]
[]
[]
[{"$nulls":9},{"$f":"J22-#REF!","v":{"$error":"#REF!"}}]
[{"$nulls":9},{"$f":"J25*0.98","v":{"$error":"#REF!"}}]
[{"$nulls":9},{"$f":"J26+#REF!","v":{"$error":"#REF!"}}]

{"sheet":"甲供材料一览表","index":3,"n_rows":3,"n_cols":5,"rows_kept":3,"merged":[[0,0,0,4],[1,0,1,4]]}
["洪湾旧村更新项目周边环山路等市政道路工程-箱变工程专业分包工程"]
["甲供材料一览表"]
["序号","材料名称","规格型号","约定损耗率","备注"]

{"sheet":"定额计价程序表 ","index":4,"n_rows":101,"n_cols":4,"rows_kept":101,"merged":[[0,0,0,3],[23,0,23,3],[24,0,24,3],[25,0,25,3],[26,0,26,3],[49,0,49,3],[50,0,50,3],[51,0,51,3],[74,0,74,3],[75,0,75,3],[77,0,77,3],[100,0,100,3],[101,0,101,3]]}
["建筑与装饰工程定额计价程序表"]
["序号","费用名称","取费基数","费率(%)"]
["1","分部分项工程费","1.1+1.2"]
["1.1","定额分部分项工程费","1.1.1+1.1.2+1.1.3+1.1.4"]
["1.1.1","人工费","分部分项人工费"]
["1.1.2","材料费","分部分项材料费+分部分项主材费+分部分项设备费"]
["1.1.3","机具费","分部分项机具费"]
["1.1.4","管理费","分部分项管理费"]
[1.2,"利润","人工费+机具费",{"v":0.2,"d":"20.00%"}]
["2","措施项目费","2.1+2.2"]
["2.1","绿色施工安全防护措施费","人工费+机具费",{"v":0.19,"d":"19.00%"}]
["2.2","其他措施项目费"]
["3","其他项目费","3.1+3.2+3.3","只计算模板"]
[3.1,"总承包服务费",null,{"v":0,"d":"0.00%"}]
[3.2,"预算包干费","人工费+机具费",{"v":0.07,"d":"7.00%"}]
[3.3,"工程优质费",null,"按合同相关条款执行"]
["4","税前工程造价","1+2+3"]
[5,"下浮工程造价","4*浮动率","详见清单编制说明"]
[6,"增值税销项税额","5*税率",{"v":0.09,"d":"9.00%"}]
[7,"含税工程造价","5+6"]
[8,"独立费"]
[9,"甲供材料超领扣款",null,"按合同相关条款执行"]
[10,"工程造价总计","7+8-9"]
["注：1、如施工期间，政府相关费率调整，则上述税率相应调整："]
[]
[]
["安装工程定额计价程序表"]
["序号","费用名称","取费基数","费率(%)"]
["1","分部分项工程费","1.1+1.2"]
["1.1","定额分部分项工程费","1.1.1+1.1.2+1.1.3+1.1.4"]
["1.1.1","人工费","分部分项人工费"]
["1.1.2","材料费","分部分项材料费+分部分项主材费+分部分项设备费"]
["1.1.3","机具费","分部分项机具费"]
["1.1.4","管理费","分部分项管理费"]
[1.2,"利润","人工费+机具费",{"v":0.2,"d":"20.00%"}]
["2","措施项目费","2.1+2.2"]
["2.1","绿色施工安全防护措施费","人工费+机具费",{"v":0.3577,"d":"35.77%"}]
["2.2","其他措施项目费",null,"只计算模板"]
["3","其他项目费","3.1+3.2+3.3"]
[3.1,"总承包服务费",null,{"v":0,"d":"0.00%"}]
[3.2,"预算包干费","人工费+机具费",{"v":0.1,"d":"10.00%"}]
[3.3,"工程优质费",null,"按合同相关条款执行"]
["4","税前工程造价","1+2+3"]
[5,"下浮工程造价（甲供、甲定价材料除外）","4*浮动率","详见清单说明规定"]
[6,"增值税销项税额","5*税率",{"v":0.09,"d":"9.00%"}]
[7,"含税工程造价","5+6"]
[8,"独立费"]
[9,"甲供材料超领扣款",null,"按合同相关条款执行"]
[10,"工程造价总计","7+8-9"]
["注：1、如施工期间，政府相关费率调整，则上述税率相应调整："]
[]
["市政工程计价程序表"]
["序号","费用名称","计算基础","费率"]
["1","分部分项工程费","1.1+1.2"]
["1.1","定额分部分项工程费","1.1.1+1.1.2+1.1.3+1.1.4"]
["1.1.1","人工费","分部分项人工费"]
["1.1.2","材料费","分部分项材料费+分部分项主材费+分部分项设备费"]
["1.1.3","机具费","分部分项机具费"]
["1.1.4","管理费","分部分项管理费"]
[1.2,"利润","人工费+机具费",{"v":0.15,"d":"15.00%"}]
["2","措施项目费","2.1+2.2"]
["2.1","绿色施工安全防护措施费","人工费+机具费","单独场地平整工程4.35%；道路、管网工程16.5%；桥梁、隧道、水处理构筑物工程14.5%。"]
["2.2","其他措施项目费",null,"只计算模板"]
["3","其他项目费","3.1+3.2+3.3"]
[3.1,"总承包服务费",null,{"v":0,"d":"0.00%"}]
[3.2,"预算包干费","人工费+机具费",{"v":0.06,"d":"6.00%"}]
[3.3,"工程优质费",null,"按合同相关条款执行"]
["4","税前工程造价","1+2+3"]
[5,"下浮工程造价（甲供、甲定价材料除外）","4*浮动率","详见清单说明规定"]
[6,"增值税销项税额","5*税率",{"v":0.09,"d":"9.00%"}]
[7,"含税工程造价","5+6"]
[8,"独立费"]
[9,"甲供材料超领扣款",null,"按合同相关条款执行"]
[10,"工程造价总计","7+8-9"]
["注：1、如施工期间，政府相关费率调整，则上述税率相应调整："]
["2、分部分项工程总费用在300万元以内（含300万元）的项目绿色施工安全防护措施费按基准费率乘以1.2。"]
[]
["园林绿化工程计价程序表"]
["序号","费用名称","计算基础","费率"]
["1","分部分项工程费","1.1+1.2"]
["1.1","定额分部分项工程费","1.1.1+1.1.2+1.1.3+1.1.4"]
["1.1.1","人工费","分部分项人工费"]
["1.1.2","材料费","分部分项材料费+分部分项主材费+分部分项设备费"]
["1.1.3","机具费","分部分项机具费"]
["1.1.4","管理费","分部分项管理费"]
[1.2,"利润","人工费+机具费",{"v":0.15,"d":"15.00%"}]
["2","措施项目费","2.1+2.2"]
["2.1","绿色施工安全防护措施费","人工费+机具费",{"v":0.1,"d":"10.00%"}]
["2.2","其他措施项目费",null,"/"]
["3","其他项目费","3.1+3.2+3.3"]
[3.1,"总承包服务费",null,{"v":0,"d":"0.00%"}]
[3.2,"预算包干费","人工费+机具费",{"v":0.06,"d":"6.00%"}]
[3.3,"工程优质费",null,"按合同相关条款执行"]
["4","税前工程造价","1+2+3"]
[5,"下浮工程造价（甲供、甲定价材料除外）","4*浮动率","详见清单说明规定"]
[6,"增值税销项税额","5*税率",{"v":0.09,"d":"9.00%"}]
[7,"含税工程造价","5+6"]
[8,"独立费"]
[9,"甲供材料超领扣款",null,"按合同相关条款执行"]
[10,"工程造价总计","7+8-9"]
["注：1、如施工期间，政府相关费率调整，则上述税率相应调整："]

{"sheet":"安全文明施工措施工作清单","index":5,"n_rows":34,"n_cols":4,"rows_kept":34,"merged":[[0,0,0,3],[1,0,2,0],[1,1,2,1],[1,2,2,2],[1,3,2,3],[3,1,3,3],[4,1,4,3],[7,1,7,3],[10,1,10,3],[11,1,11,3],[13,1,13,3],[18,1,18,3],[20,1,20,3],[21,1,21,3],[23,1,23,3],[25,1,25,3],[26,1,26,3],[28,1,28,3],[30,1,30,3],[32,1,32,3]]}
["安全文明施工措施工作清单"]
["序号","项目名称","项目特征描述","备注"]
[]
["一","临时设施"]
["（1）","项目办公场所"]
["1","项目部施工总承包办公室","1.按照项目部施工总承包方办公区域管理要求自主配备相应办公设施、用电设施；\n2.按照项目部施工总承包方办公区域管理要求管理办公室内环境、卫生及安全用电；\n3.分包方按照办公室室内建筑面积   元/m2/月价格按月缴纳办公室使用费用（包含办公室使用费、税金、水电费，不含室内外办公设施、用电设备）；\n4.分包方安装使用大功率电器设备需报施工总承包方项目部管理人员审批统一后方可使用；\n5.如在使用过程中，出现违反项目部施工总承包方有关办公区域管理的有关行为，项目部施工总承包方有权收回办公室使用权，并按约定租金的双倍处罚。其他综合考虑"]
["2","项目附近租赁办公室","1.按照施工总承包方的管理要求租赁、布置办公室，符合国家、地区及施工总承包方的卫生、健康、安全、消防等管理规定；\n2.其他：综合考虑"]
["（2）","项目工人生活场所"]
["1","项目部施工总承包方临时设施","1.按照项目部施工总承包方工地生活区域管理要求自主配备相应生活设施、用电设施；\n2.按照项目部施工总承包方工地生活区域管理要求管理宿舍室内环境、卫生及安全用电；\n3.分包方按照宿舍数量   元/间/月的价格按月缴纳宿舍使用费用（包含宿舍使用费、税金、水电费，不含室内外办公设施、用电设备）；\n4.分包方安装使用大功率电器设备需报施工总承包方项目部管理人员审批统一后方可使用；\n5.如在使用过程中，出现违反项目部施工总承包方有关工地生活区域管理的有关行为，项目部施工总承包方有权收回宿舍使用权，并按约定租金的双倍处罚。其他综合考虑"]
["2","项目附近租赁生活场所","1.按照施工总承包方的管理要求租赁、布置工人生活区，符合国家、地区及施工总承包方的卫生、健康、安全、消防等管理规定；\n2.其他：综合考虑"]
["二","安全施工"]
["（1）","临边洞口作业防护"]
["1","“四口”（楼梯口、电梯口、预留洞口、通道口）、“五临边”（沟、坑,槽和深基础周边；屋面周边；楼层周边；楼梯侧边；平台或阳台边）","分包施工范围内的“四口”“五临边”按照施工总承包方的管理要求设置，具体作法参考正方建设《施工现场安全与文明施工标准化手册》2021版）。"]
["（2）","安全措施的配备"]
["1","垂直方向交叉作业防护","设置防护隔离棚或其他设施满足施工总承包方安全管理的其他要求。"]
["2","高空作业防护","有悬挂安全带的悬索或其他设施；有操作平台；有上下的梯子或其他形式的通道及满足施工总承包方安全管理的其他要求。"]
["3","保健急救措施","保健医药用品、急救用品，水上水下作业救生设备器具及满足施工总承包方安全管理的其他要求。"]
["4","施工机具的防护","施工机具防雨、防风、防沙尘的防护措施以及及满足施工总承包方安全管理的其他要求。"]
["（3）","安全教育"]
["1","安全教育","对进场作业的工人进行安全生产教育，按要求对其进行施工工序的安全交底并形成教育、交底记录以及及满足施工总承包方安全管理的其他要求。"]
["三","文明施工"]
["（1）","标识标语"]
[1,"标识标语","按照施工总承包方的管理要求按时、按位置设置施工范围内的标识标语，具体作法参考正方建设《施工现场安全与文明施工标准化手册》2021版）。"]
["（2）","材料设备堆放"]
[1,"材料设备堆放","分包材料设备堆放的堆放、材料设备的标识标牌要符合施工总承包方的管理要求，符合国家、地区及施工总承包方的安全、消防及文明施工等管理规定"]
["四","环境保护"]
["（1）","清洁卫生"]
["1","清洁卫生","在生活区、办公区、施工区产生的生活、办公及施工的分包管理人员、作业人员须按照项目部施工总承包方的管理要求，满足国家、地区及施工总承包方的卫生、健康、清洁等管理规定。"]
["（2）","垃圾清理"]
["1","垃圾清理","生活区、办公区、施工区产生的生活、办公及施工垃圾应及时清理归堆运至项目部施工总承包方的规定集中堆放地，做到工完场清。"]
["（3）","裸露场地覆盖"]
["1","绿网覆盖（含绿网）","按照项目部施工总承包方的管理要求对裸露土石方场地进行覆盖，具体作法参考正方建设《施工现场安全与文明施工标准化手册》2021版，符合国家、地区及施工总承包方的防尘、环境保护等管理规定。"]
["（4）","土方施工机械管理"]
["1","土方施工机械管理","按照项目部施工总承包方的管理要求对土方施工机械进行管理，包括不限于施工场区内、土方施工机械运输沿途的降尘及环境保护管理，符合国家、地区及施工总承包方的防尘、环境保护等管理规定。"]